bitfinex/quotes_ETHUSD_20241119
["timestamp","ask_amount","ask_price","bid_price","bid_amount"]
[1731991594825,0.33072,3152.8,3152.6,3.48875]
[1731991595075,0.04549463,3152.8,3152.7,1.064226]
[1731991595380,0.01382,3152.8,3152.7,1.064226]
[1731991596344,0.01382,3152.8,3152.6,0.3168]
[1731991596540,0.86039463,3152.8,3152.6,0.3168]
[1731991598047,0.86039463,3152.8,3152.5,0.3168]
[1731991599477,0.86039463,3152.8,3152.6,0.3168]
[1731991600430,0.86039463,3152.8,3152.4,0.3168]
[1731991601379,3.17188,3152.7,3152.4,0.3168]
[1731991601572,4.03217463,3152.8,3152.2,0.3168]
[1731991601746,4.03217463,3152.8,3152.2,1.361229]
[1731991602362,0.86039463,3152.8,3152.2,1.361229]
[1731991602534,3.17188,3152.7,3152.2,1.361229]
[1731991603376,4.03218463,3152.8,3152.2,1.361229]
[1731991603734,3.172,3152.6,3152.1,0.3168]
[1731991604045,3.20367463,3152.6,3152.1,0.3168]
[1731991604463,0.03167463,3152.6,3152.1,0.3168]
[1731991604767,3.17239,3152.2,3151.9,0.3168]
[1731991604948,0.82,3152.1,3151.9,0.3168]
[1731991605152,3.99249,3152.1,3151.9,0.3168]
[1731991605463,3.17258,3152.0,3151.9,0.3168]
[1731991605646,3.20425463,3152.0,3151.5,0.3168]
[1731991605851,3.20425463,3152.0,3151.5,0.52541116]
[1731991608342,0.03167463,3152.0,3151.5,0.52541116]
[1731991608878,0.03167463,3152.0,3151.3,3.3168]
[1731991608879,0.8019,3151.7,3151.3,3.3168]
[1731991609476,0.83357463,3151.7,3151.3,3.3168]
[1731991609680,0.83357463,3151.7,3151.3,0.3168]
[1731991609977,0.83357463,3151.7,3151.3,1.35171057]
[1731991610347,0.03167463,3151.7,3151.3,1.35171057]
[1731991610548,0.8115,3151.9,3151.5,0.3168]
[1731991610790,0.84317463,3151.9,3151.5,0.3168]
[1731991620331,0.52627463,3151.9,3151.4,2.85615]
[1731991621196,0.52627463,3151.9,3151.5,0.3169]
[1731991621540,3.69898463,3151.9,3151.5,0.3169]
[1731991621709,3.1729,3151.7,3151.0,4.00619]
[1731991621881,3.1729,3151.7,3151.1,3.0]
[1731991622231,3.20457463,3151.7,3151.1,0.3169]
[1731991622947,3.173,3151.6,3151.1,0.3169]
[1731991623244,0.806,3151.6,3151.1,0.3169]
[1731991623406,3.97901,3151.6,3151.1,0.3169]
[1731991623846,4.38007846,3151.6,3151.2,0.3169]
[1731991624147,3.17318,3151.5,3151.2,0.3169]
[1731991624349,3.17329,3151.3,3151.2,0.3169]
[1731991624501,3.96516463,3151.3,3151.2,0.3169]
[1731991624849,3.17353,3151.1,3150.6,0.3169]
[1731991625142,3.20520463,3151.1,3150.6,1.33109]
[1731991625447,3.93385,3151.0,3150.6,0.3169]
[1731991625650,3.17387,3150.8,3150.6,0.3169]
[1731991625872,3.93549,3150.7,3150.3,0.3169]
[1731991626003,3.1742,3150.4,3150.3,0.3169]
[1731991626199,0.03167463,3150.4,3150.3,0.3169]
[1731991626830,0.03167463,3150.4,3150.1,0.3169]
[1731991627143,0.03167463,3150.4,3150.1,0.84008759]
[1731991627358,0.03167463,3150.4,3150.1,0.3169]
[1731991627561,0.7616,3150.3,3150.1,0.3169]
[1731991629306,3.93597,3150.3,3150.1,0.3169]
[1731991629712,0.7616,3150.3,3150.1,0.3169]
[1731991634978,0.7896,3150.2,3150.1,0.3169]
[1731991635275,0.82127463,3150.2,3150.1,0.3169]
[1731991637272,3.99567463,3150.2,3150.1,0.3169]
[1731991638388,3.935,3150.1,3150.0,0.117717]
[1731991639357,4.485,3150.1,3150.0,0.117717]
[1731991640764,0.01,3149.5,3148.3,0.1447721]
[1731991640969,0.7605,3148.8,3148.3,3.3210221]
[1731991641151,0.79217463,3148.8,3148.3,4.04706331]
[1731991641497,0.79217463,3148.8,3148.4,0.3169]
[1731991641847,3.96798463,3148.8,3148.4,0.3169]
[1731991642251,3.17592,3148.7,3148.4,0.3169]
[1731991642692,0.79217463,3148.8,3148.4,0.2669]
[1731991643281,3.96799463,3148.8,3148.4,0.2669]
[1731991643590,3.96799463,3148.8,3148.4,0.2169]
[1731991644345,1.50653709,3148.8,3148.4,0.2169]
[1731991644553,0.79217463,3148.8,3148.4,3.39301]
[1731991644755,0.03167463,3148.8,3148.6,0.1169]
[1731991644964,0.03167463,3148.8,3148.6,3.29284]
[1731991645405,0.03167463,3148.8,3148.7,3.17591]
[1731991645569,0.03167463,3148.8,3148.7,3.29281]
[1731991645774,0.03167463,3148.8,3148.7,0.1169]
[1731991646362,0.03167463,3148.8,3148.7,3.29281]
[1731991647886,0.03167463,3148.8,3148.5,3.19294]
[1731991648909,0.03167463,3148.8,3148.6,3.1929]
[1731991652701,0.01484242,3148.8,3148.6,3.1929]
[1731991653364,0.01484242,3148.8,3148.7,3.19281]
[1731991654916,0.01484242,3148.8,3148.7,4.24406472]
[1731991655080,0.7794,3149.4,3148.7,4.98607319]
[1731991655272,0.7794,3149.4,3149.0,0.0169]
[1731991656216,0.7863,3149.6,3149.3,3.19217]
[1731991656366,0.7863,3149.6,3149.3,0.0169]
[1731991656570,3.1752,3149.4,3149.3,0.0169]
[1731991656814,4.35765,3149.4,3149.3,0.0169]
[1731991657052,4.37285,3149.4,3148.9,0.0169]
[1731991657360,1.19765,3149.4,3148.9,3.19258]
[1731991657571,1.19765,3149.4,3149.1,0.0169]
[1731991657745,4.37286,3149.4,3149.1,0.0169]
[1731991658061,0.438286,3149.3,3149.1,0.0169]
[1731991658565,0.438286,3149.3,3148.9,0.0169]
[1731991658868,0.438286,3149.3,3149.1,0.0169]
[1731991659066,4.37286,3149.4,3149.1,0.0169]
[1731991659932,4.37286,3149.4,3148.9,0.0169]
[1731991660442,3.17533,3149.3,3148.9,0.0169]
[1731991660828,3.17543,3149.2,3148.9,0.0169]
[1731991661013,0.635076,3149.1,3148.8,0.0169]
[1731991661643,0.8091,3149.0,3148.8,0.0169]
[1731991661849,0.8243,3149.0,3148.8,0.0169]
[1731991662048,0.8243,3149.0,3148.7,0.0169]
[1731991663466,1.2877806,3149.0,3148.7,0.0169]
[1731991663617,1.2877806,3149.0,3148.5,0.0169]
[1731991664532,0.7719,3148.6,3148.5,0.0169]
[1731991664680,3.19121,3148.6,3148.4,0.0169]
[1731991664876,1.092021,3148.5,3148.4,0.0169]
[1731991665117,4.268131,3148.5,3148.4,0.0169]
[1731991665774,4.278131,3148.5,3148.4,0.0169]
[1731991667915,0.7849,3148.1,3147.3,3.0220721]
[1731991668128,3.17668,3148.0,3147.3,3.0220721]
[1731991668628,3.17668,3148.0,3147.4,0.3169]
[1731991668983,3.892999,3148.0,3147.4,0.3169]
[1731991669634,3.892999,3148.0,3147.4,3.49409]
[1731991669928,0.8001,3148.1,3147.7,0.3169]
[1731991670338,0.8001,3148.1,3147.7,3.49374]
[1731991670544,0.0152,3148.1,3148.0,3.49352]
[1731991673161,0.8397,3148.1,3148.0,0.3169]
[1731991673296,4.417825,3148.1,3148.0,0.3169]
[1731991673952,3.17672,3147.9,3147.3,0.3169]
[1731991674108,3.19192,3147.9,3147.3,0.3169]
[1731991674592,3.19192,3147.9,3147.3,3.49422]
[1731991674943,4.00132,3147.8,3147.3,0.3169]
[1731991675445,0.8245,3147.8,3147.4,0.3169]
[1731991675663,0.8245,3147.8,3147.4,3.49409]
[1731991675811,0.8245,3147.8,3147.7,0.3169]
[1731991676006,0.0152,3147.9,3147.7,0.3169]
[1731991676311,0.0152,3147.9,3147.7,3.49381]
[1731991676761,0.0152,3147.9,3147.7,0.3169]
[1731991676963,0.0152,3147.9,3147.6,0.3169]
[1731991677172,0.0152,3147.9,3147.6,3.49391]
[1731991677654,0.0152,3147.9,3147.8,0.3169]
[1731991678663,0.0152,3147.9,3147.6,0.3169]
[1731991678957,0.0152,3147.9,3147.8,0.3169]
[1731991679964,3.19192,3147.9,3147.3,3.49422]
[1731991680114,0.7989,3147.8,3147.3,3.49422]
[1731991680457,0.7989,3147.8,3147.5,3.49399]
[1731991680661,0.7989,3147.8,3147.5,0.3169]
[1731991681514,0.7989,3147.8,3147.4,0.3169]
[1731991685682,0.7989,3147.8,3147.6,0.3169]
[1731991685828,0.7989,3147.8,3147.5,3.17711]
[1731991685829,0.0152,3147.9,3147.8,0.3169]
[1731991686888,0.0152,3147.9,3147.8,3.49372]
[1731991687046,0.0152,3148.1,3148.0,3.49352]
[1731991687859,0.0152,3148.1,3148.0,0.3169]
[1731991688190,0.0152,3148.1,3147.7,0.3169]
[1731991689087,0.0152,3148.1,3147.6,0.3169]
[1731991689459,0.8251,3148.0,3147.6,0.3169]
[1731991690091,0.8251,3148.0,3147.5,0.3169]
[1731991690384,3.17674,3147.9,3147.5,0.3169]
[1731991690608,3.19194,3147.9,3147.5,0.3169]
[1731991691078,3.17684,3147.8,3147.4,0.3169]
[1731991691599,0.0152,3147.9,3147.4,0.3169]
[1731991691972,0.0152,3147.9,3147.6,0.3169]
[1731991693110,0.0152,3147.9,3147.5,0.3169]
[1731991693655,0.0152,3147.9,3147.7,0.3169]
[1731991694511,0.0152,3147.9,3147.8,3.49372]
[1731991694809,0.0152,3148.1,3148.0,3.49352]
[1731991695310,0.0152,3148.3,3148.2,3.49331]
[1731991695652,0.0152,3148.3,3148.2,4.29551]
[1731991697696,0.0152,3148.3,3148.2,7.36015704]
[1731991702504,0.0152,3148.3,3148.2,4.29551]
[1731991703553,0.8444,3148.3,3148.2,0.3169]
[1731991704238,0.0152,3148.3,3148.2,0.3169]
[1731991704624,0.0152,3148.3,3148.1,3.49333]
[1731991705196,0.0152,3148.3,3148.1,0.3169]
[1731991705396,0.0152,3148.3,3148.2,3.49331]
[1731991706403,0.0152,3148.3,3148.2,4.959103]
[1731991707949,0.0152,3148.3,3148.2,3.49331]
[1731991710262,0.8152,3148.5,3148.4,0.3169]
[1731991711245,0.8152,3148.5,3148.3,0.3169]
[1731991711447,3.17621,3148.4,3148.3,0.3169]
[1731991711653,3.575351,3148.4,3148.3,0.3169]
[1731991712073,3.607351,3148.4,3148.3,0.3169]
[1731991712375,3.607351,3148.4,3147.9,0.3169]
[1731991712516,3.20821,3148.4,3147.9,0.3169]
[1731991712713,0.032,3148.4,3147.9,0.3169]
[1731991712920,0.032,3148.4,3147.9,3.49361]
[1731991713462,0.032,3148.4,3148.1,0.3169]
[1731991714562,0.032,3148.4,3148.0,0.3169]
[1731991714870,3.17651,3148.1,3148.0,0.3169]
[1731991715068,4.02271,3148.1,3148.0,0.3169]
[1731991715565,3.17677,3147.9,3147.3,0.3169]
[1731991715764,3.17677,3147.9,3147.3,3.49422]
[1731991715765,0.8142,3147.8,3147.3,3.49422]
[1731991717172,3.99104,3147.8,3147.2,0.3169]
[1731991717378,0.8142,3147.8,3147.2,0.3169]
[1731991717668,0.8142,3147.8,3147.2,0.79318368]
[1731991717880,3.99102,3147.8,3147.4,0.3169]
[1731991718969,3.033351,3147.8,3147.3,0.3169]
[1731991719373,3.17703,3147.6,3147.3,0.3169]
[1731991719533,3.20903,3147.6,3147.3,0.3169]
[1731991719967,3.20903,3147.6,3147.1,0.3169]
[1731991720131,3.20903,3147.6,3147.3,0.3169]
[1731991720631,3.20903,3147.6,3147.5,0.3169]
[1731991721443,3.20903,3147.6,3146.9,0.3169]
[1731991721643,3.17715,3147.5,3146.9,7.8510977]
[1731991722075,3.98775,3147.5,3146.9,7.8510977]
[1731991722261,0.8106,3147.5,3146.9,7.8510977]
[1731991723196,3.98812,3147.1,3147.0,0.3169]
[1731991723545,4.02012,3147.1,3147.0,0.3169]
[1731991723746,4.739878,3147.1,3146.5,0.3169]
[1731991723945,0.8426,3147.1,3146.5,3.495]
[1731991724293,0.8426,3147.1,3146.3,0.3169]
[1731991724543,3.17773,3146.9,3146.3,0.3169]
[1731991724874,3.20973,3146.9,3146.3,0.3169]
[1731991725265,0.032,3146.9,3146.4,3.17822]
[1731991725487,0.032,3146.9,3146.4,3.49512]
[1731991726597,0.032,3146.9,3146.6,3.178]
[1731991726956,0.032,3146.9,3146.7,3.38154704]
[1731991727197,0.032,3147.1,3147.0,3.17762]
[1731991727491,0.032,3147.1,3147.0,3.844855]
[1731991727694,0.032,3147.2,3147.0,3.844855]
[1731991727894,0.032,3147.2,3147.0,3.17762]
[1731991728854,0.032,3147.2,3146.8,3.49473]
[1731991728855,0.032,3147.2,3146.8,0.3169]
[1731991729060,0.032,3147.2,3146.6,6.4949]
[1731991729061,0.807,3147.1,3146.6,6.4949]
[1731991729257,0.807,3147.1,3146.8,0.3169]
[1731991730076,0.807,3147.1,3146.5,0.3169]
[1731991730307,3.17764,3147.0,3146.5,0.3169]
[1731991730506,3.20964,3147.0,3146.5,0.3169]
[1731991730671,3.96125,3146.9,3146.5,0.3169]
[1731991731005,0.7835,3146.9,3146.5,0.3169]
[1731991731173,3.17783,3146.8,3146.3,0.3169]
[1731991731356,3.17794,3146.7,3146.3,0.3169]
[1731991731811,0.032,3146.8,3146.3,0.3169]
[1731991732145,0.749094,3146.8,3146.0,0.3279]
[1731991732363,0.749094,3146.8,3146.1,0.3169]
[1731991732364,3.17813,3146.6,3146.1,0.3169]
[1731991732694,3.21013,3146.6,3146.1,0.3169]
[1731991733814,0.032,3146.6,3146.1,0.3169]
[1731991734013,3.17814,3146.5,3146.1,0.3169]
[1731991734213,3.17824,3146.4,3146.1,0.3169]
[1731991734414,0.032,3146.4,3146.1,0.3169]
[1731991735045,3.17841,3146.3,3146.0,0.3279]
[1731991735561,0.8262,3146.2,3146.0,0.3279]
[1731991735860,0.8582,3146.2,3146.0,0.3279]
[1731991736066,0.8582,3146.2,3146.0,0.011]
[1731991737473,1.261861,3146.2,3146.0,0.011]
[1731991737675,3.98603,3146.1,3146.0,0.011]
[1731991738934,0.8075,3146.1,3146.0,0.011]
[1731991739466,0.032,3146.2,3146.0,3.18954]
[1731991739667,0.032,3146.2,3146.1,3.49543]
[1731991739868,0.032,3146.2,3146.1,0.985408]
[1731991740023,0.032,3146.2,3146.1,0.3169]
[1731991740537,0.032,3146.2,3146.0,0.3279]
[1731991740733,0.032,3146.4,3146.3,0.3169]
[1731991743120,0.032,3146.4,3146.3,3.49523]
[1731991743316,0.032,3146.4,3146.3,0.3169]
[1731991743537,0.032,3146.4,3146.3,3.49523]
[1731991744461,0.032,3146.4,3146.3,0.3169]
[1731991744775,0.032,3146.4,3146.3,3.49523]
[1731991745136,0.032,3146.4,3146.3,0.3169]
[1731991745664,0.8581,3146.4,3146.3,0.3169]
[1731991746051,0.8581,3146.4,3146.0,0.3279]
[1731991746566,4.03633,3146.4,3146.0,0.3279]
[1731991746775,4.757767,3146.4,3146.0,0.3279]
[1731991746977,4.757767,3146.4,3146.0,0.011]
[1731991746978,3.17848,3146.2,3146.0,0.011]
[1731991747125,3.21048,3146.2,3146.0,0.011]
[1731991747326,0.8261,3146.1,3146.0,0.011]
[1731991749330,4.726119,3146.1,3146.0,0.011]
[1731991749774,5.276119,3146.1,3146.0,0.011]
[1731991755359,0.56,3145.2,3145.1,0.1443749]
[1731991755541,0.55,3144.5,3143.7,0.875]
[1731991755972,0.7559,3144.3,3143.7,4.05588]
[1731991756181,0.55,3144.5,3143.7,4.05588]
[1731991756182,0.7559,3143.9,3143.7,0.875]
[1731991756491,0.7559,3143.8,3143.7,1.1919]
[1731991756647,3.18073,3144.0,3143.7,1.1919]
[1731991756826,3.18085,3143.9,3143.7,1.1919]
[1731991757033,0.711721,3144.0,3143.7,1.1919]
[1731991757242,3.73086,3143.8,3143.7,1.1919]
[1731991757660,4.48676,3143.8,3143.7,1.1919]
[1731991758191,4.48676,3143.8,3143.7,0.875]
[1731991758397,3.18186,3142.9,3141.9,0.9342749]
[1731991758701,0.032,3142.9,3142.5,3.18213]
[1731991759201,0.032,3142.9,3142.3,5.0]
[1731991759370,0.032,3142.9,3142.4,0.3169]
[1731991760038,0.032,3142.9,3142.3,9.400537]
[1731991760245,0.032,3142.9,3142.3,5.0]
[1731991760445,0.032,3142.9,3142.4,3.18224]
[1731991761199,0.032,3142.9,3142.4,3.18219]
[1731991761379,0.032,3142.9,3142.3,5.0]
[1731991761692,0.032,3142.9,3142.5,3.18216]
[1731991761995,0.032,3142.9,3142.6,3.500256]
[1731991762203,0.032,3142.9,3142.4,3.18225]
[1731991762786,0.032,3142.9,3142.5,3.18217]
[1731991762995,0.032,3142.9,3142.3,8.94029]
[1731991763367,0.032,3142.9,3142.3,8.18229]
[1731991763700,3.9832,3142.9,3142.3,5.0]
[1731991763898,3.18196,3142.8,3142.3,5.0]
[1731991764193,0.55,3142.7,3142.3,5.0]
[1731991764394,0.582,3142.7,3142.3,5.0]
[1731991764901,3.76407,3142.7,3142.3,5.0]
[1731991765094,4.217417,3142.7,3142.3,5.0]
[1731991765314,3.96718,3142.4,3142.3,5.0]
[1731991765503,4.54918,3142.4,3142.3,5.0]
[1731991766303,4.54918,3142.4,3141.7,2.0]
[1731991766304,7.54918,3142.4,3140.7,2.0]
[1731991766517,7.54918,3142.4,3138.7,2.0]
[1731991766518,0.01,3139.4,3138.7,2.0]
[1731991766654,9.80057704,3138.8,3138.7,4.9e-06]
[1731991766850,3.74633,3138.4,3138.3,5.0]
[1731991767053,2.03906131,3138.4,3138.3,5.0]
[1731991767357,1.74916332,3138.4,3138.3,3.28751407]
[1731991767555,0.01,3138.3,3137.2,4.0]
[1731991767785,0.01,3138.3,3136.2,3.5724]
[1731991767786,3.20847,3136.3,3136.2,3.5724]
[1731991768121,3.19928,3135.5,3134.5,0.005]
[1731991768412,5.68025567,3135.5,3135.4,4.20265898]
[1731991768547,4.06619297,3135.5,3135.4,4.20265898]
[1731991768751,5.15662259,3135.5,3135.4,0.8202659]
[1731991769002,4.45728738,3135.5,3134.9,3.18986]
[1731991769201,3.54786142,3135.4,3135.0,0.01]
[1731991769417,3.53797829,3135.3,3134.7,0.32563849]
[1731991769739,3.53797829,3135.2,3135.1,3.18961]
[1731991769865,2.65241441,3135.2,3135.1,3.18961]
[1731991770072,1.10104639,3135.2,3135.1,3.18961]
[1731991770301,0.48006114,3136.0,3135.9,3.19877]
[1731991770519,0.032,3136.2,3136.1,6.19857]
[1731991770808,0.48006114,3137.5,3136.9,3.0099]
[1731991771031,0.48006114,3137.8,3137.6,3.1871]
[1731991771154,3.18539,3139.4,3137.8,3.18694]
[1731991771155,0.48006114,3137.9,3137.8,3.18694]
[1731991771351,0.48006114,3138.5,3137.7,0.788]
[1731991771596,0.48006114,3138.5,3138.2,3.18652]
[1731991771799,0.48006114,3138.6,3138.5,3.18623]
[1731991771987,0.48006114,3138.8,3138.3,3.18639]
[1731991772190,0.3084324,3139.1,3138.6,3.18606]
[1731991772413,0.3084324,3139.1,3137.8,3.18694]
[1731991772414,0.48006114,3139.2,3137.7,3.0]
[1731991772594,0.78849354,3138.8,3137.9,3.08675]
[1731991772758,0.78849354,3138.8,3137.9,0.627379]
[1731991773108,0.3084324,3138.9,3137.9,3.18678]
[1731991773325,0.3084324,3138.9,3138.1,3.18664]
[1731991773455,0.3084324,3138.9,3138.2,3.18652]
[1731991773815,0.3084324,3138.9,3138.3,3.18643]
[1731991773953,0.3084324,3138.9,3137.7,0.342761]
[1731991774157,0.3084324,3139.0,3138.3,3.18634]
[1731991774902,0.3084324,3139.0,3138.4,3.18631]
[1731991775920,0.3084324,3139.0,3137.0,0.01]
[1731991776060,0.8584324,3138.6,3137.5,3.18724]
[1731991776402,0.8584324,3138.4,3137.3,3.18745]
[1731991776558,0.3084324,3138.3,3137.5,3.18725]
[1731991777391,0.3084324,3138.3,3137.5,3.18719]
[1731991777547,0.8584324,3138.4,3137.6,3.18706]
[1731991777703,0.8584324,3138.4,3137.7,3.18701]
[1731991777895,0.8584324,3138.4,3137.6,3.18706]
[1731991777896,0.15930676,3138.3,3137.6,3.18705]
[1731991778103,0.15930676,3138.2,3137.4,3.18735]
[1731991778332,0.55,3138.0,3136.8,3.18792]
[1731991778548,0.3084324,3137.7,3136.8,3.18792]
[1731991778752,0.15930676,3137.6,3137.0,3.18775]
[1731991778908,0.15930676,3137.5,3137.0,3.18775]
[1731991779109,0.15930676,3137.4,3137.0,3.18775]
[1731991779462,0.15930676,3137.4,3136.4,4.13244592]
[1731991779463,3.4959924,3137.2,3136.2,3.18854]
[1731991779615,0.3084324,3137.0,3136.2,3.18854]
[1731991779945,0.52649098,3136.9,3136.3,3.18843]
[1731991780133,0.52649098,3136.8,3136.3,3.18843]
[1731991780443,0.52649098,3136.7,3136.3,3.18843]
[1731991780626,0.36718422,3136.6,3136.4,3.18827]
[1731991780830,0.36718422,3136.5,3136.3,3.18843]
[1731991781152,0.15937696,3136.8,3136.3,3.18843]
[1731991781443,0.52681607,3136.7,3136.3,3.18843]
[1731991781651,0.36743911,3136.6,3136.3,3.18843]
[1731991781803,0.36743911,3136.5,3136.4,3.18836]
[1731991782004,3.1874,3137.4,3136.4,3.18836]
[1731991782366,0.30619769,3136.9,3136.5,3.18825]
[1731991782567,0.75646068,3136.8,3136.5,3.18825]
[1731991782719,0.75646068,3136.7,3136.3,3.18838]
[1731991782921,0.5970855,3136.6,3136.5,3.18817]
[1731991783502,0.75645457,3136.6,3136.5,3.18817]
[1731991783920,0.5970855,3136.6,3136.5,3.18817]
[1731991784251,0.59764557,3136.6,3136.5,3.18817]
[1731991784457,0.22964827,3136.6,3136.5,3.18817]
[1731991784745,0.59811783,3136.6,3136.5,3.18817]
[1731991785385,0.75748375,3136.6,3136.5,3.18817]
[1731991785732,0.75748375,3136.6,3135.9,3.18886]
[1731991785733,0.75748375,3136.6,3135.9,3.18887]
[1731991785935,0.30619769,3136.4,3135.8,3.18896]
[1731991786166,0.30619769,3136.2,3135.8,3.18896]
[1731991786368,0.30619769,3136.0,3135.9,3.18887]
[1731991786573,0.75748375,3136.0,3135.9,3.18887]
[1731991788409,0.75748375,3136.0,3135.7,3.18906]
[1731991788548,0.3080545,3135.8,3135.6,3.18917]
[1731991788749,0.75748375,3135.9,3135.6,3.18917]
[1731991789047,0.30803384,3135.7,3135.6,3.18917]
[1731991789248,0.75748375,3135.7,3135.6,3.18917]
[1731991790111,0.75748375,3135.7,3135.6,3.50607]
[1731991790958,1.06596145,3135.7,3135.6,3.50607]
[1731991791165,0.75748375,3135.7,3135.6,3.50607]
[1731991791364,0.75748375,3135.7,3135.6,4.58885659]
[1731991791659,3.19682,3138.0,3137.1,3.1876]
[1731991792009,3.20682,3138.0,3137.1,3.1876]
[1731991792160,3.18707,3137.7,3136.9,3.18785]
[1731991792360,3.18707,3137.7,3137.0,3.18773]
[1731991792601,3.18687,3137.9,3137.0,3.18773]
[1731991792906,3.18667,3138.1,3137.3,3.18737]
[1731991793146,3.19667,3138.1,3136.7,0.3169]
[1731991793349,3.1967,3138.1,3137.2,3.18746]
[1731991793867,3.1967,3138.1,3137.1,3.18765]
[1731991794164,0.01,3138.0,3137.1,3.18765]
[1731991794315,3.18714,3137.7,3136.9,3.18784]
[1731991794519,0.55,3137.8,3137.0,3.18768]
[1731991794934,3.19666,3138.1,3136.6,0.3169]
[1731991795106,3.18683,3138.0,3137.1,3.18761]
[1731991795535,3.19665,3138.1,3137.3,3.18742]
[1731991796048,3.18684,3137.9,3136.9,3.18785]
[1731991796292,3.18684,3137.9,3137.2,3.18752]
[1731991797075,3.18667,3138.1,3137.3,3.18743]
[1731991797285,3.18678,3138.0,3137.3,3.18743]
[1731991797497,3.18687,3137.9,3137.1,3.18761]
[1731991797681,3.187,3137.8,3137.0,3.18773]
[1731991797883,3.18717,3137.6,3136.8,3.18793]
[1731991798787,3.18717,3137.6,3136.9,3.18785]
[1731991799084,3.18722,3137.6,3136.8,3.18787]
[1731991799282,3.18687,3137.9,3136.5,3.50515]
[1731991799488,0.31339543,3136.8,3136.6,3.18816]
[1731991799641,3.18666,3138.1,3136.6,3.18816]
[1731991799979,3.18625,3138.5,3136.6,0.677306]
[1731991800284,3.18625,3138.5,3137.8,3.18691]
[1731991800483,3.19613,3138.6,3137.6,3.18708]
[1731991800634,3.18647,3138.3,3137.6,3.18708]
[1731991800836,3.18647,3138.3,3137.4,3.18732]
[1731991801180,3.18647,3138.3,3137.5,3.18723]
[1731991801348,3.18647,3138.3,3137.6,3.18711]
[1731991801549,0.37618962,3138.2,3137.6,3.18711]
[1731991801753,0.37618962,3138.1,3137.6,3.18711]
[1731991802075,0.37618962,3138.0,3137.6,3.18711]
[1731991802286,0.37618962,3137.9,3137.8,3.18693]
[1731991802853,0.37618962,3137.9,3137.6,3.18706]
[1731991803050,0.37618962,3137.8,3137.7,3.18701]
[1731991803457,0.6115646,3137.8,3137.7,3.18701]
[1731991805387,0.6115646,3137.8,3137.7,2.86971]
[1731991805887,0.6115646,3137.8,3136.4,0.7637]
[1731991806091,0.6115646,3137.7,3137.2,3.18747]
[1731991806386,0.6115646,3137.6,3137.2,3.18747]
[1731991806552,0.6115646,3137.5,3136.8,3.18788]
[1731991806755,0.6115646,3137.4,3136.6,3.18816]
[1731991807068,0.6115646,3137.3,3136.6,3.18816]
[1731991807267,0.6115646,3137.2,3136.7,3.18804]
[1731991807633,0.6115646,3137.1,3136.7,3.18804]
[1731991807798,0.6115646,3137.0,3136.7,3.18804]
[1731991808104,0.6115646,3136.9,3136.7,3.18804]
[1731991808298,0.23537498,3136.8,3136.7,3.18804]
[1731991808503,0.6115646,3136.8,3136.7,3.18804]
[1731991810099,0.6115646,3136.8,3136.7,3.50494]
[1731991810575,0.6115646,3136.8,3136.0,0.3169]
[1731991810749,3.18859,3136.2,3135.5,3.18927]
[1731991810945,0.6115646,3136.1,3135.5,3.18927]
[1731991811143,0.6115646,3136.0,3135.5,3.18927]
[1731991811451,0.6115646,3135.9,3135.5,3.18927]
[1731991811811,0.6115646,3135.8,3135.2,3.18957]
[1731991812091,0.6115646,3135.7,3135.0,3.18976]
[1731991812295,0.6115646,3135.6,3135.0,3.18976]
[1731991812441,0.6115646,3135.5,3134.8,3.18999]
[1731991812648,0.01201315,3135.0,3134.5,0.3219]
[1731991812851,0.6115646,3134.9,3134.8,0.3169]
[1731991813856,0.6115646,3134.9,3134.6,0.3169]
[1731991814091,0.6115646,3134.8,3134.6,0.3169]
[1731991814292,0.6115646,3134.7,3134.6,0.3169]
[1731991815006,0.6115646,3134.7,3134.5,0.005]
[1731991815007,0.61156859,3134.7,3134.5,0.005]
[1731991815243,0.23521869,3134.6,3134.5,0.005]
[1731991815794,0.61129631,3134.6,3134.5,0.005]
[1731991815994,0.23521869,3134.6,3134.5,3.1953]
[1731991816203,3.42540869,3134.6,3134.5,0.005]
[1731991816439,3.80135057,3134.6,3134.5,0.005]
[1731991816646,0.61116057,3134.6,3134.5,0.005]
[1731991816997,0.01201315,3135.0,3134.5,0.005]
[1731991817354,0.01201315,3135.0,3134.9,3.97839]
[1731991818055,0.01201315,3135.0,3134.9,3.98839]
[1731991818197,0.37585669,3136.4,3135.8,3.18895]
[1731991818408,3.19787,3136.9,3135.2,3.19941]
[1731991818409,3.18799,3136.8,3135.9,3.18886]
[1731991818602,3.18787,3136.9,3135.2,0.0099]
[1731991818603,0.61079516,3136.3,3135.8,3.18897]
[1731991818801,0.37588161,3136.2,3135.8,3.18897]
[1731991819001,0.37588161,3136.1,3135.8,3.18897]
[1731991819329,0.61080762,3136.0,3135.8,3.18897]
[1731991819516,0.23492601,3135.9,3135.3,3.18945]
[1731991819721,0.23492601,3135.8,3135.6,3.18918]
[1731991819936,0.23492601,3135.7,3135.6,3.18918]
[1731991820249,0.23492601,3135.7,3135.4,3.18936]
[1731991820449,0.61080099,3135.6,3135.1,3.18959]
[1731991820602,0.23492601,3135.5,3135.1,3.18959]
[1731991820798,0.23492601,3135.4,3135.1,3.18959]
[1731991821047,3.18889,3135.9,3134.9,3.96847]
[1731991821048,0.23492601,3135.3,3134.9,3.96847]
[1731991821359,0.37581403,3135.7,3135.2,3.18958]
[1731991821519,0.61066573,3135.6,3135.2,3.18958]
[1731991821856,0.2348517,3135.5,3135.4,3.18938]
[1731991822016,0.37581403,3136.2,3135.5,3.18925]